Cogmind - Beta 10.2 @@@ ROGUE MODE // 2022.02.19 @ 15:50:31 Player: russur Result: Self-destructed Performance ------------- Evolutions (1) 500 Regions Visited (3) 600 Robots Destroyed (19) 95 Value Destroyed (349) 349 Prototype IDs (0) 0 Alien Tech Used (0) 0 Bonus (0) 0 TOTAL SCORE: 1544 Bonus ------- None Cogmind --------- Core Integrity 366/400 Matter 188/300 Energy 250/250 System Corruption 0% Temperature Cool (0) Movement Walking (120) Location -9/Materials Parts ------- > --- POWER (1) -------- Ion Engine > --- PROPULSION (4) --- Aluminum Leg Aluminum Leg Carbon-fiber Leg > --- UTILITY (2) ------ Improved Heat Sink Medium Storage Unit > --- WEAPON (2) ------- Light Assault Rifle Grenade Launcher > --- INVENTORY (8) ---- Ion Engine Ion Engine Medium Battery (200) Medium Matter Pod (100) Medium Matter Pod (100) Small Laser Beamcaster Grenade Launcher Peak State ------------ > --- POWER ------------ Ion Engine > --- PROPULSION ------- Aluminum Leg Aluminum Leg Carbon-fiber Leg > --- UTILITY ---------- Improved Heat Sink Medium Storage Unit > --- WEAPON ----------- Beamcaster Light Assault Rifle > --- INVENTORY -------- Ion Engine Ion Engine Medium Battery Medium Matter Pod Medium Matter Pod Small Laser Grenade Launcher Grenade Launcher [Rating: 16] Favorites ----------- Power Ion Engine Engine Ion Engine Propulsion Aluminum Leg Leg Aluminum Leg Utility Medium Storage Unit Device Improved Heat Sink Storage Medium Storage Unit Weapon Grenade Launcher Energy Gun Small Laser Ballistic Gun Light Assault Rifle Launcher Grenade Launcher Build | -11 -10 -10 -9 ------- Run | Scr Mat Min Mat Slots Evolved 2 | . . . 2 Power . | . . . . Propulsion 2 | . . . 2 Utility . | . . . . Weapon . | . . . . Parts Attached 23 | 7 8 2 6 Power 3 | 1 2 . . Engine 3 | 1 2 . . Core . | . . . . Reactor . | . . . . Propulsion 3 | 2 . . 1 Treads . | . . . . Leg 3 | 2 . . 1 Wheel . | . . . . Hover . | . . . . Flight . | . . . . Utility 5 | 1 2 1 1 Device 1 | . . . 1 Storage 4 | 1 2 1 . Processor . | . . . . Hackware . | . . . . Protection . | . . . . Artifact . | . . . . Weapon 12 | 3 4 1 4 Energy Gun 6 | 2 2 . 2 Energy Cannon . | . . . . Ballistic Gun 3 | 1 1 . 1 Ballistic Cannon . | . . . . Launcher 3 | . 1 1 1 Special Weapon . | . . . . Impact Weapon . | . . . . Slashing Weapon . | . . . . Piercing Weapon . | . . . . Special Melee Weapon . | . . . . Unidentified Prototypes . | . . . . Parts Lost . | . . . . Power . | . . . . Propulsion . | . . . . Utility . | . . . . Weapon . | . . . . Highest Loss Streak . | . . . . Average Slot Usage (%) 92 | . 93 100 81 Engine 13 | . 14 14 11 Leg 27 | . 28 28 26 Storage 22 | . 21 28 18 Energy Gun 8 | . 13 3 5 Ballistic Gun 6 | . 11 . 7 Launcher 11 | . 3 24 8 Naked Turns . | . . . . Heaviest Build 21 | 10 19 21 21 Greatest Support 35 | 20 20 20 35 Greatest Overweight (x) 1 | 1 . 1 1 Average Overweight (x) . | . . . . Largest Inventory Capacity 8 | 6 8 8 8 Average Capacity 7 | 5 6 8 8 Most Carried 8 | 2 8 8 8 Average Carried 6 | 1 4 7 7 Final Capacity 8 | 6 8 8 8 Final Carried 8 | 2 8 8 8 Class Distribution -------------------- 90% | Mutant 9% | Scavenger-Mutant Dominant Class ---------------- Mutant | -10/Materials Mutant | -10/Mines Mutant | -9/Materials Resources | -11 -10 -10 -9 ----------- Run | Scr Mat Min Mat Matter Collected 697 | 270 73 292 62 Remotely . | . . . . Salvage Created 442 | . 110 84 248 Parts 30 | . 15 3 12 Haulers Intercepted 1 | . 1 . . Recyclers Shooed 1 | . . . 1 Parts Field Recycled . | . . . . Retrieved Matter . | . . . . Parts Self-Destructed . | . . . . Prevented . | . . . . Kills | -11 -10 -10 -9 ------- Run | Scr Mat Min Mat Combat Hostiles Destroyed 14 | . 6 2 6 Guns 4 | . 3 . 1 AOE 10 | . 3 2 5 Classes Destroyed 6 | . 2 2 2 Builder 1 | . . . 1 Hauler 1 | . 1 . . Recycler 3 | . . 1 2 Swarmer 9 | . 6 . 3 Grunt 4 | . . 2 2 Sentry 1 | . . . 1 Best Kill Streak 6 | . 3 3 6 Combat Bots Only 4 | . 3 2 4 Max Kills in Single Turn 4 | . 3 2 4 Gunslinging . | . . . . Exploded 4 | . 3 1 4 Melee . | . . . . Uniques/NPCs Destroyed . | . . . . Combat | -11 -10 -10 -9 -------- Run | Scr Mat Min Mat Damage Taken 459 | . 146 3 310 Core 47 | . 10 3 34 Absorbed by Shields . | . . . . Core Remaining (%) 97 | 100 . 94 . Volleys Fired 43 | . 16 3 24 Largest 2 | . 2 2 2 Hottest 95 | . 60 60 95 Shots Fired 79 | . 31 4 44 Gun 65 | . 30 . 35 Cannon . | . . . . Launcher 14 | . 1 4 9 Special . | . . . . Kinetic 39 | . 15 . 24 Thermal 17 | . 6 . 11 Explosive 14 | . 1 4 9 Electromagnetic 9 | . 9 . . Robot Hit Streak 12 | . 5 . 12 Robot Miss Streak 3 | . 3 . 2 Penetration Max . | . . . . Secondary Targets . | . . . . Shots Hit Robots 44 | . 15 . 29 Core Hits 30 | . 9 5 16 Critical Hits . | . . . . Critical Kills . | . . . . Critical Parts Destroyed . | . . . . Melee Attacks . | . . . . Impact . | . . . . Slashing . | . . . . Piercing . | . . . . Sneak Attacks . | . . . . Combat Hostiles . | . . . . Follow-up Attacks . | . . . . Damage Inflicted 936 | . 227 149 560 Guns 303 | . 117 . 186 Cannons . | . . . . Explosions 633 | . 110 149 374 Melee . | . . . . Ramming . | . . . . Kinetic 133 | . 19 . 114 Thermal 115 | . 43 . 72 Explosive 633 | . 110 149 374 Electromagnetic 55 | . 55 . . Impact . | . . . . Slashing . | . . . . Piercing . | . . . . Highest Corruption . | . . . . Average Corruption . | . . . . Corruption Purged . | . . . . Overload Shots . | . . . . Overflow Damage 33 | . . . 33 Projectiles . | . . . . Explosions 33 | . . . 33 Melee . | . . . . Knockbacks . | . . . . Impact . | . . . . Kinetic . | . . . . Secondary . | . . . . Self-Inflicted Damage 102 | . 39 4 59 Shots 8 | . 2 1 5 Rammed . | . . . . Targets Rammed . | . . . . Kicked . | . . . . Crushed . | . . . . Highest Temperature 103 | . 40 . 103 Average Temperature 24 | . 19 . 31 Received Heat Transfer 69 | . . . 69 Siege Activations . | . . . . Robots Corrupted . | . . . . Combat Hostiles . | . . . . Parts Fried . | . . . . Impact Corruptions . | . . . . Robots Melted . | . . . . Combat Hostiles . | . . . . Parts Melted . | . . . . Heat Transferred 262 | . 100 . 162 Parts Sabotaged . | . . . . Parts Stolen . | . . . . Parts Stripped . | . . . . Power Chain Reactions . | . . . . Missiles Intercepted . | . . . . Alert | -11 -10 -10 -9 ------- Run | Scr Mat Min Mat Peak Influence 239 | . 233 166 239 Initial 90 | . . 90 64 Average 96 | . 105 115 94 Maximum Alert Level 1 | . 1 . 1 Low Security (%) 92 | 100 82 100 95 Level 1 7 | . 17 . 4 Level 2 . | . . . . Level 3 . | . . . . Level 4 . | . . . . Level 5 . | . . . . High Security . | . . . . Max Security . | . . . . Squads Dispatched 3 | . . . 3 Investigation 2 | . . . 2 Extermination . | . . . . Reinforcement 1 | . . . 1 Assault . | . . . . Garrison . | . . . . Intercept . | . . . . Construction Impeded . | . . . . Haulers Reinforced . | . . . . Stealth | -11 -10 -10 -9 --------- Run | Scr Mat Min Mat Distress Signals . | . . . . Communications Jammed . | . . . . Distress Signals . | . . . . Times Spotted 19 | . 8 2 9 Peak Tracking Total 6 | . 4 2 6 Tactical Retreats 1 | . . . 1 Traps | -11 -10 -10 -9 ------- Run | Scr Mat Min Mat Traps Triggered . | . . . . Indirectly . | . . . . Trap Hack Attempts . | . . . . Triggered . | . . . . Disarmed . | . . . . Reprogrammed . | . . . . Reused . | . . . . Traps Extracted . | . . . . Installed . | . . . . Triggered . | . . . . Machines | -11 -10 -10 -9 ---------- Run | Scr Mat Min Mat Machines Disabled 4 | . 3 1 . Max in Single Turn 2 | . 2 1 . Machines Sabotaged . | . . . . Garrisons Compromised . | . . . . Overloaded Fab Kills . | . . . . Fab Network Shutdowns . | . . . . Hacking | -11 -10 -10 -9 --------- Run | Scr Mat Min Mat Machines Accessed 4 | . 2 . 2 Terminals 4 | . 2 . 2 Fabricators . | . . . . Repair Stations . | . . . . Recycling Units . | . . . . Scanalyzers . | . . . . Garrison Access . | . . . . Total Hacks 14 | . 5 . 9 Successful 5 | . 3 . 2 Failed 9 | . 2 . 7 Catastrophic . | . . . . Database Lockouts . | . . . . Manual 13 | . 4 . 9 Terminals 14 | . 5 . 9 Fabricators . | . . . . Repair Stations . | . . . . Recycling Units . | . . . . Scanalyzers . | . . . . Garrison Access . | . . . . Terminal Hacks 3 | . 2 . 1 Terminal Index 2 | . 1 . 1 Transport Status 1 | . 1 . . Fabricator Hacks . | . . . . Repair Station Hacks . | . . . . Recycling Unit Hacks . | . . . . Scanalyzer . | . . . . Garrison Access Hacks . | . . . . Unauthorized Hacks 2 | . 1 . 1 Terminals 2 | . 1 . 1 Botnet 2 | . 1 . 1 Fabricators . | . . . . Repair Stations . | . . . . Recycling Units . | . . . . Scanalyzers . | . . . . Garrison Access . | . . . . Data Cores Recovered . | . . . . Used . | . . . . Hacking Detections 4 | . 2 . 2 Full Trace Events 2 | . . . 2 Feedback Events . | . . . . Feedback Blocked . | . . . . Robot Schematics Acquired . | . . . . Robots Built . | . . . . Matter . | . . . . Time . | . . . . Total Robot Build Rating . | . . . . Part Schematics Acquired . | . . . . Parts Built . | . . . . Matter . | . . . . Time . | . . . . Total Part Build Rating . | . . . . Parts Repaired . | . . . . Time . | . . . . Parts Recycled . | . . . . Recycled Matter . | . . . . Retrieved Matter . | . . . . Retrieved Components . | . . . . Parts Scanalyzed . | . . . . Part Schematics Acquired . | . . . . Parts Damaged . | . . . . Bothacking | -11 -10 -10 -9 ------------ Run | Scr Mat Min Mat Used RIF Installer . | . . . . Robots Hacked . | . . . . Non-combat . | . . . . Combat . | . . . . Robot Hacks Applied . | . . . . Relay Couplers Released . | . . . . Robots Rewired . | . . . . Allies Hacked . | . . . . Hacks Repelled . | . . . . Allies | -11 -10 -10 -9 -------- Run | Scr Mat Min Mat Total Allies 2 | . . 2 . Largest Group 2 | . . 2 1 Highest-Rated Group 42 | . . 42 31 Highest-Rated Ally 31 | . . 31 31 Total Orders . | . . . . Ally Attacks 12 | . . 5 7 Total Damage 144 | . . 82 62 Kills . | . . . . Allies Corrupted . | . . . . Allies Melted . | . . . . Intel | -11 -10 -10 -9 ------- Run | Scr Mat Min Mat Robot Analysis Total . | . . . . Derelict Logs Recovered 1 | . . 1 . Drone Launches . | . . . . Drone Recoveries . | . . . . Exploration | -11 -10 -10 -9 ------------- Run | Scr Mat Min Mat Turns Passed 731 | 60 285 206 180 Spaces Moved 436 | 43 175 139 79 Core 7 | 7 . . . Treads . | . . . . Legs 429 | 36 175 139 79 Wheels . | . . . . Hover . | . . . . Flight . | . . . . Fastest Speed 50 | 50 120 120 120 Average Speed 128 | 113 120 140 134 Slowest Speed 150 | 120 120 150 150 Overloaded Moves . | . . . . Propulsion Burnouts . | . . . . Robots Hopped . | . . . . Cave-ins Triggered . | . . . . Exploration Rate (%) 23 | 3 35 45 10 Regions Visited 3 Branch Regions 1 Pre-discovered Areas 1 | . . 1 . Known Exits Taken . | . . . . Unknown Exits Taken 3 | 1 1 1 . Scrap Searched 1 | . . 1 . Spaces Dug 15 | . . 7 8 Terrain Destroyed 68 | . 4 19 45 Melee . | . . . . Projectile . | . . . . AOE 68 | . 4 19 45 Terrain Rammed . | . . . . Walls Destroyed . | . . . . Machines Disabled . | . . . . Actions | -11 -10 -10 -9 --------- Run | Scr Mat Min Mat Total 532 | 51 224 145 112 Wait 8 | . 8 . . Move 433 | 42 174 138 79 Hop . | . . . . Pick Up 14 | 2 10 1 1 Fast Attach 8 | 6 1 . 1 Attach . | . . . . Detach . | . . . . Swap 15 | 1 7 2 5 Drop 11 | . 8 1 2 Fire 43 | . 16 3 24 Melee . | . . . . Ram . | . . . . Kick . | . . . . Crush . | . . . . Escape Stasis . | . . . . Rewire . | . . . . Trap . | . . . . Miscellaneous . | . . . . Route ------- -11/Scrapyard -10/Materials (discovered 3 exits: *Mat / [*Min x2]) -10/Mines -9/Materials (discovered 1 exit: [*Sto]) History --------- Turn | Location | Event 8 | -11/Scrapyard | Discovered new exit (range 15) 61 | -11/Scrapyard | Entered Materials 153 | -10/Materials | Discovered new exit (range 9) 208 | -10/Materials | Discovered new exit (range 3) 261 | -10/Materials | Discovered new exit (range 15) 313 | -10/Materials | Build established: Mutant 346 | -10/Materials | Entered Mines 347 | -10/Mines | Assembled infested the area 352 | -10/Mines | Assisted by a Guerilla fighting off Assembled 522 | -10/Mines | Discovered new exit (range 10) 552 | -10/Mines | Entered Materials 552 | -9/Materials | Accompanied by 1 ally 552 | -9/Materials | Evolved 2 slots: Propulsion x2 562 | -9/Materials | Led the pair of lost Derelicts to an unsafe place 694 | -9/Materials | Discovered new exit (range 14) 732 | -9/Materials | Self-destructed Last Messages --------------- 00688_ ALERT: Suspicious activity at Terminal M011. Dispatching Investigation squad. 00694_ EXIT=FOUND 00697_ G-34 Mercenary destroyed. 00697_ S-10 Pest destroyed. 00697_ Destroyed Flight Unit. 00697_ S-10 Pest destroyed. 00711_ Destroyed Lgt. Assault Rifle. 00715_ U-05 Engineer destroyed. 00716_ The unstable cave ceiling collapses. 00720_ U-05 Engineer lays Concrete. 00724_ The unstable cave ceiling collapses. 00724_ R-06 Scavenger collects Wheel. 00725_ U-05 Engineer builds a Wall. 00727_ The unstable cave ceiling collapses. 00729_ U-05 Engineer lays Concrete. 00729_ Y-45 Defender destroyed. 00730_ The unstable cave ceiling collapses. 00730_ U-05 Engineer lays Concrete. 00732_ U-05 Engineer builds a Wall. Map ----- +----------------------------------------------------+ | | | | | | | | | | | ?????????????????????????????????????????????????? | | ?????????????????????????????????????????????????? | | ?????????????????????????????????????????????????? | | ?????????????????????????????????????????????????? | | ?????????????????????????????????????????????????? | | ?????????????????????????????????????????????????? | | ?????????????????????????????????????????????????? | | ?????????????????????????????????????????????????? | | ?????????????????????????????????????????????????? | | ?????????????????????????????????????????????????? | | ?????????????????????????????????????????????????? | | ?????????????????????????????????????????????????? | | ?????????????????????????????????????????????????? | | ??????????????????????????????????????????######## | | ?????????????# ???###########??????######## # | | ????????????## ## # #??????# # # | | ????????????# %### # ######## """ # # | | ????????????# =u = # """ + + | | ????????????+ < * # """ # # | | ????????????# % ! /! # # # " | | ????????????# # @ /! # # #### | | ?????????????????# # [ ! ######## #??? | | ?????????????????# # # # #??????# #??? | | ????????????????? ## ########??????# #??? | | ??????????????? # ############## % #??? | | ??????????????# ""?# #??? | | ??????????????# "??# T * #??? | | ??????????????# ???# !%! #??? | | ??????????????# ????# ##########+##### #??? | | ??????????????# ?????#######???# %[ ## #??? | | ??????????????#??????????????????# ## #??? | | ?????????????????????????????????# "T" ##%#??? | | ?????????????????????????????????# """ ## #??? | | ?????????????????????????????????############ #??? | | ???????????????????????????????????????????? ??? | | ???????????????????????????????????????????? ??? | | ??????????????????????????????????????????? ?? | | ??????????????????????????????????????????? ?? | | ?????????????????????????????????????????? #? | | ?????????????????????????????????????????? #? | | ????????????????????????????????????????? #? | | ????????????????????????????????????????? #? | | ????????????????????????????????????????#+#### ##? | | ???????????????????????????????????????? ???? #?? | | ???????????????????????????????????????? "???? #?? | +----------------------------------------------------+ Best States ------------- Heat Dissipation 42 Energy Generation 10 Energy Capacity 450 Matter Stores 400 Matter Capacity 400 Sight Range 16 Terrain Scan Density 10 Evasion (%) 40 Item Schematics ----------------- None Robot Schematics ------------------ None Fabricated ------------ Nothing Alien Tech Used ----------------- None Achievements -------------- None Challenges ------------ None Game ------ Seed ImprinterFluxMace Manual? 0 Play Time 00:13:36 Cumulative 13.7 hours Start 2022.02.19 @ 15:35:39 End 2022.02.19 @ 15:50:31 Sessions 1 Manual Loads 0 Difficulty Rogue Special Mode None Game No. 42 Rogue 42 Adventurer 0 Explorer 0 Win Type - Total 0 Types 0/0/0/0/0/0/0/0/0 Lore% 15 Gallery% 22 Achievement% 18 Wizard Run 0 Options --------- ASCII 0 Keyboard 0 Movement Numpad Keybinds 0 Fullscreen 2 Font 16/SmallcapsGlow Map View 76x50 Tactical HUD 1 Map Filters NONE Filters NONE Steam 1 RUN: 8e912109-6743-4b33-b06c-da9443d199e6